{"text_format":"1","workbook":"xlsx","n_sheets":3,"sheets":["Version history","COVER","Capacity factor calculation"],"not_rendered":{"charts":1,"images":4,"macros":1,"external_links":0,"defined_names":2,"comments":0,"pivot_tables":0},"unopened":[],"bounds":{"document_bytes":16777216,"sheet_cells":100000,"rows_first":2000,"rows_last":500,"rows_between":2000,"halvings":0,"cell_chars":16384,"cell_head_chars":4096},"cells_cut":0,"cells_raw":0,"read":"whole","date_system":"1900"}

{"sheet":"Version history","index":0,"n_rows":2,"n_cols":4,"rows_kept":2,"cut":false,"hidden":false,"merged":[]}
[]
[null,"Date","Version","Comments"]

{"sheet":"COVER","index":1,"n_rows":61,"n_cols":19,"rows_kept":61,"cut":false,"hidden":false,"merged":[[8,2,10,22],[32,16,38,16],[37,8,37,12],[39,8,39,12],[59,3,59,20]]}
[]
[]
[]
[]
[]
[]
[]
[null,null,"INTRO"]
[null,null,"Le Centre régional de l'Énergie renouvelable et de l'efficacité énergétique de la CEDEAO (ECREEE), au nom des membres de la Communauté économique des États de l'Afrique de l'Ouest (CEDEAO), a demandé un soutien au service de dialogue par le partenariat de l'UE pour l'initiative énergétique (EUEI PDF) pour le développement d'un ensemble d'outils (boîte à outils) pour définir des tarifs pour les énergies renouvelables et fournir une assistance technique pour le calcul des tarifs des énergies renouvelables. En conséquence, EMRC (membre du MRC Group) a été mandaté par EUEI PDF pour développer une boîte à outils comprenant plusieurs modèles tarifaires standard pour calculer les tarifs des technologies renouvelables et un manuel d'utilisation associé.\nCe modèle basé sur Excel couvre le calcul du niveau de production lié aux éoliennes (facteur de charge ou facteur de capacité).\n"]
[]
[]
[]
[]
[null,null,"PANNEAU DE COMMANDE"]
[]
[]
[]
[]
[null,null,null,null,null,null,"Status:",{"$f":"WksProtected('Capacity factor calculation'!A1)","v":"Protégé"}]
[]
[]
[]
[]
[]
[]
[]
[null,null,"BOITE À OUTILS"]
[null,null,"Ceci est le modèle profils éolienne",null,null,"La boîte à outils est composée de 6 modèles Excel:"]
[]
[null,null,null,null,null,"Trois modèles de projects renouvelables",null,null,null,null,null,null,null,null,null,"Un modèle"]
[null,null,null,null,null,null,null,null,null,null,null,null,null,null,null,"d'objetifs de politique"]
[]
[null,null,null,null,null,null,null,null,"1. IPP Renouvelable",null,"2. Prossommateur",null,"3. Mini-réseau vert",null,null,null,"6. Modèle courbe d'offre"]
[]
[]
[]
[]
[null,null,null,null,null,"Deux modèles  pour",null,null,"4. Profil énergie éolienne"]
[null,null,null,null,null,"aider à la conversion"]
[null,null,null,null,null,"de données d'entrée",null,null,"5. Conversion unités combustible"]
[]
[]
[]
[]
[null,null,"LÉGENDE"]
[null,null,null,"Onglets:",null,null,null,null,null,null,null,null,null,null,null,null,"Code de couleurs pour les cellules:"]
[null,null,null,null,"Cover",null,"Introduction avec des informations générales sur le modèle"]
[null,null,null,null,"Capacity factor calculation",null,"Données d'entrée, calculs et donées de sortie",null,null,null,null,null,null,null,null,null,null,12.34,"Entrée (données codées)"]
[null,null,null,null,null,null,null,null,null,null,null,null,null,null,null,null,null,12.34,"Formules et références (calculs)"]
[null,null,null,null,null,null,null,null,null,null,null,null,null,null,null,null,null,12.34,"Scénario ou sélection actuelle"]
[null,null,null,null,null,null,null,null,null,null,null,null,null,null,null,null,null,12.34,"Zone inactif (avec la sélection d'option actuelle)"]
[]
[]
[]
[]
[]
[]
[]
[null,null,"AVERTISSEMENT"]
[null,null,null,"Cet outil financier est uniquement à des fins d'information. Le MRC Group, ECREEE et l'EUEI PDF ne sont pas responsables et n'acceptent aucune responsabilité quant à l'exactitude de cet outil financier ou à toute donnée qu'il contient."]
[null,null,null,"Cet outil financier ne représente pas une approbation par MRC Group, ECREEE ou l'EUEI PDF de toute activité ou projet."]

{"sheet":"Capacity factor calculation","index":2,"n_rows":75,"n_cols":8,"rows_kept":75,"cut":false,"hidden":false,"merged":[[3,0,3,2]]}
["Facteur de charge d'énergie éolienne et calcul des heures équivalentes à pleine charge"]
[]
["ENTRÉES"]
["Données du projet et du vent"]
["Nom du projet",null,"Reference project"]
["Emplacement",null,"Location X"]
[]
["Données sur la turbine éolienne"]
["Type",null,"G87 2MW","Sources des données, G87 2MW wind turbine power curve"]
["Fabricant",null,"Gamesa"]
["Capacité Installée","MW",2]
[]
["Résultats de mesure"]
["Hauteur de mesure","metres"]
["Hauteur du rotor","metres",80]
["Vitesse moyenne","m/s"]
["Stand Dev","m/s"]
["Heures de l'année","heures",8766]
[]
["CALCULS"]
[]
[null,"Paramètres Weibull","Hauteur de la tour de mesure","Hauteur du rotor (nacelle)"]
[null,"k",{"$f":"(C17/C16)^-1.086","v":{"$error":"#DIV/0!"}},{"$f":"C23*((1-0.088*LN($C$14/10))/(1-0.088*LN($C$15/10)))","v":{"$error":"#DIV/0!"}}]
[null,"c",{"$f":"C16*(0.568+0.433/C23)^(-1/C23)","v":{"$error":"#DIV/0!"}},{"$f":"C24*($C$15/$C$14)^D25","v":{"$error":"#DIV/0!"}}]
[null,"betta",null,{"$f":"(0.37-0.088*LN(C24))/(1-0.088*LN($C$14/10))","v":{"$error":"#DIV/0!"}}]
[]
["Vitesse du vent et production d'énergie"]
["Gamme  m/s","Inférieure m/s","Supérieure m/s","Moyenne  m/s \n(pour les graphs)","Probabilité (v)","Puissance aero (kW)","Puissance aero * probabilité (v)*(kW)","Prod élec. (MWh)"]
["0 to 4.5",0,4.5,{"$f":"+AVERAGE(B29,C29)","v":2.25},{"$f":"(1-EXP(-1*(C29/$D$24)^$D$23))-(1-EXP(-1*(B29/$D$24)^$D$23))","v":{"$error":"#DIV/0!"}},180.2,{"$f":"E29*F29","v":{"$error":"#DIV/0!"}},{"$f":"G29*$C$18/1000","v":{"$error":"#DIV/0!"}}]
["4.5 to 5.5",4.5,5.5,{"$f":"+AVERAGE(B30,C30)","v":5},{"$error":"#DIV/0!"},181.2,{"$f":"E30*F30","v":{"$error":"#DIV/0!"}},{"$error":"#DIV/0!"}]
["5.5 to 6.5",5.5,6.5,6,{"$error":"#DIV/0!"},335.4,{"$f":"E31*F31","v":{"$error":"#DIV/0!"}},{"$error":"#DIV/0!"}]
["6.5 to 7.5",6.5,7.5,7,{"$error":"#DIV/0!"},549.79999999999995,{"$error":"#DIV/0!"},{"$error":"#DIV/0!"}]
["7.5 to 8.5",7.5,8.5,8,{"$error":"#DIV/0!"},831.5,{"$error":"#DIV/0!"},{"$error":"#DIV/0!"}]
["8.5 to 9.5",8.5,9.5,9,{"$error":"#DIV/0!"},1174.8,{"$error":"#DIV/0!"},{"$error":"#DIV/0!"}]
["9.5 to 10.5",9.5,10.5,10,{"$error":"#DIV/0!"},1528.3,{"$error":"#DIV/0!"},{"$error":"#DIV/0!"}]
["10.5 to 11.5",10.5,11.5,11,{"$error":"#DIV/0!"},1794.7,{"$error":"#DIV/0!"},{"$error":"#DIV/0!"}]
["11.5 to 12.5",11.5,12.5,12,{"$error":"#DIV/0!"},1931.1,{"$error":"#DIV/0!"},{"$error":"#DIV/0!"}]
["12.5 to 13.5",12.5,13.5,13,{"$error":"#DIV/0!"},1981,{"$error":"#DIV/0!"},{"$error":"#DIV/0!"}]
["13.5 to 14.5",13.5,14.5,14,{"$error":"#DIV/0!"},1995.3,{"$error":"#DIV/0!"},{"$error":"#DIV/0!"}]
["14.5 to 15.5",14.5,15.5,15,{"$error":"#DIV/0!"},1998.9,{"$error":"#DIV/0!"},{"$error":"#DIV/0!"}]
["15.5 to 16.5",15.5,16.5,16,{"$error":"#DIV/0!"},1999.8,{"$error":"#DIV/0!"},{"$error":"#DIV/0!"}]
["16.5 to 17.5",16.5,17.5,17,{"$error":"#DIV/0!"},2000,{"$error":"#DIV/0!"},{"$error":"#DIV/0!"}]
["17.5 to 18.5",17.5,18.5,{"$f":"+AVERAGE(B43,C43)","v":18},{"$error":"#DIV/0!"},2000,{"$error":"#DIV/0!"},{"$error":"#DIV/0!"}]
["18.5 to 25",18.5,25,21.75,{"$error":"#DIV/0!"},2000,{"$error":"#DIV/0!"},{"$error":"#DIV/0!"}]
[]
[]
[]
[]
[]
[]
[]
[]
[]
[]
[]
[]
[]
[]
[]
[]
[]
[]
[]
[]
[]
[]
[]
["SORTIES"]
[]
["Production annuelle d'énergie"]
[]
["Énergie renouvelable livrée","MWh",{"$f":"+SUM(H29:H44)","v":{"$error":"#DIV/0!"}}]
["Facteur de Charge","%",{"$f":"+C72/C11/8760","v":{"$error":"#DIV/0!"}}]
[]
["Heures équivalentes à pleine charge","hours",{"$f":"+C73*C18","v":{"$error":"#DIV/0!"}}]